Cogmind - Beta 16.1 @@@ ROGUE MODE // 2026.02.21 @ 11:19:04 Player: Ceorik Result: Destroyed by G-34 Mercenary with Small Laser Performance ------------- Evolutions (0) 0 Regions Visited (1) 200 Robots Destroyed (5) 25 Value Destroyed (135) 135 Prototype IDs (2) 40 Alien Tech Used (0) 0 Bonus (0) 0 TOTAL SCORE: 400 Bonus ------- None Cogmind --------- Core Integrity 0/250 Matter 280/300 Energy 250/250 System Corruption 0% Temperature Cool (6) Movement Hovering (180) Ox2 Location -10/Materials Parts ------- > --- POWER (1) -------- Ion Engine > --- PROPULSION (2) --- Hover Unit > --- UTILITY (2) ------ Small Storage Unit Targeting Computer > --- WEAPON (2) ------- Light Cannon > --- INVENTORY (8) ---- Ion Engine Aluminum Leg Aluminum Leg Aluminum Leg Heat Sink Small Laser Peak State ------------ > --- POWER ------------ Ion Engine > --- PROPULSION ------- Aluminum Leg Aluminum Leg > --- UTILITY ---------- Small Storage Unit Improved Terrain Scanner > --- WEAPON ----------- Light Assault Rifle Light Assault Rifle > --- INVENTORY -------- (None) [Rating: 9] Favorites ----------- Power Ion Engine Engine Ion Engine Propulsion Aluminum Leg Leg Aluminum Leg Hover Unit Hover Unit Utility Small Storage Unit Device Improved Terrain Scanner Storage Small Storage Unit Processor Targeting Computer Weapon Light Assault Rifle Ballistic Gun Light Assault Rifle Ballistic Cannon Light Cannon Build | -11 -10 ------- Run | Yrd Mat Slots Evolved . | . . Power . | . . Propulsion . | . . Utility . | . . Weapon . | . . Parts Attached 15 | 7 8 Power 3 | 1 2 Engine 3 | 1 2 Core . | . . Reactor . | . . Propulsion 6 | 2 4 Treads . | . . Leg 3 | 2 1 Wheel . | . . Hover 3 | . 3 Flight . | . . Utility 3 | 2 1 Device 1 | 1 . Storage 1 | 1 . Processor 1 | . 1 Hackware . | . . Protection . | . . Artifact . | . . Weapon 3 | 2 1 Energy Gun . | . . Energy Cannon . | . . Ballistic Gun 2 | 2 . Ballistic Cannon 1 | . 1 Launcher . | . . Special Weapon . | . . Impact Weapon . | . . Slashing Weapon . | . . Piercing Weapon . | . . Special Melee Weapon . | . . Unidentified Prototypes . | . . Parts Lost 7 | . 7 Power 2 | . 2 Propulsion 2 | . 2 Utility 1 | . 1 Weapon 2 | . 2 Highest Loss Streak 2 | . 2 To Critical Strikes . | . . Average Backups . | . 3 Power . | . . Propulsion . | . 1 Utility . | . . Weapon . | . . Tool/Special . | . . Unused Backups 1 | . 1 Power 1 | . 1 Propulsion . | . . Utility . | . . Weapon . | . . Tool/Special . | . . Average Slot Usage (%) 73 | . 73 Engine 10 | . 10 Leg 18 | . 18 Hover 7 | . 7 Device 10 | . 10 Storage 14 | . 14 Processor 1 | . 1 Ballistic Gun 8 | . 8 Ballistic Cannon 1 | . 1 Peak Build Rating 9 | 9 9 Average Rating 6 | 5 6 On Entrance 4 | . 9 Avg Prop Armor Cover (%) . | . . Naked Turns . | . . Heaviest Build 13 | 13 13 Greatest Support 20 | 20 20 Greatest Overweight (x) 1 | . 1 Average Overweight (x) . | . . Largest Inventory Capacity 8 | 8 8 Average Capacity 7 | 7 8 Most Carried 6 | 4 6 Average Carried . | . 3 Final Capacity 8 | 8 8 Final Carried 6 | . 6 Class Distribution -------------------- 100% | Mutant Dominant Class ---------------- Mutant | -10/Materials Resources | -11 -10 ----------- Run | Yrd Mat Matter Collected 408 | 288 120 Remotely . | . . Salvage Created 132 | 14 118 Parts 11 | . 11 Haulers Intercepted . | . . Recyclers Shooed . | . . Parts Field Recycled . | . . Retrieved Matter . | . . Parts Self-Destructed . | . . Prevented . | . . Parts Restored . | . . Kills | -11 -10 ------- Run | Yrd Mat Combat Hostiles Destroyed 8 | 3 5 Guns 5 | 3 2 Cannons 3 | . 3 Classes Destroyed 3 | 1 2 Swarmer 2 | . 2 Grunt 3 | . 3 Assembled 3 | 3 . Best Kill Streak 3 | 2 3 Combat Bots Only 3 | 2 3 Max Kills in Single Turn 1 | 1 1 Gunslinging . | . . Exploded . | . . Melee . | . . Uniques/NPCs Destroyed . | . . Combat | -11 -10 -------- Run | Yrd Mat Hostile Shots Fired 138 | 41 97 Missed 57 | 16 41 Hits 81 | 25 56 Projectile 81 | 25 56 Damage Taken 1008 | 343 665 Core 253 | 74 179 Absorbed by Shields . | . . Core Remaining (%) 70 | 70 . Volleys Fired 39 | 19 20 Largest 2 | 2 2 Hottest 40 | 40 40 Shots Fired 66 | 38 28 Gun 54 | 38 16 Cannon 12 | . 12 Launcher . | . . Special . | . . Kinetic 66 | 38 28 Thermal . | . . Explosive . | . . Electromagnetic . | . . Robot Hit Streak 6 | 4 6 Robot Miss Streak 4 | 4 3 Penetration Max . | . . Secondary Targets 1 | 1 . Max Gunslinging Chain 1 | 1 . Shots Hit Robots 33 | 17 16 Core Hits 15 | 8 7 Critical Kills . | . . Critical Parts Destroyed . | . . Critical Strikes . | . . Melee Attacks . | . . Impact . | . . Slashing . | . . Piercing . | . . Sneak Attacks . | . . Combat Hostiles . | . . Follow-up Attacks . | . . Damage Inflicted 368 | 154 214 Guns 227 | 154 73 Cannons 135 | . 135 Explosions . | . . Melee . | . . Ramming 6 | . 6 Kinetic 362 | 154 208 Thermal . | . . Explosive . | . . Electromagnetic . | . . Impact . | . . Slashing . | . . Piercing . | . . Highest Corruption . | . . Average Corruption . | . . Corruption Purged . | . . Corruption Blocked . | . . Overload Shots . | . . Overflow Damage . | . . Projectiles . | . . Explosions . | . . Melee . | . . Knockbacks 2 | . 2 Impact . | . . Kinetic 2 | . 2 Secondary . | . . Self-Inflicted Damage 3 | . 3 Shots . | . . Rammed 1 | . 1 Targets Rammed 1 | . 1 Kicked . | . . Crushed . | . . Highest Temperature 24 | . 24 Average Temperature 14 | . 14 Received Heat Transfer 327 | . 327 Siege Activations . | . . Martial Activations . | . . Shielding Activations . | . . Robots Disrupted . | . . Combat Hostiles . | . . Robots Corrupted . | . . Combat Hostiles . | . . Parts Fried . | . . Impact Corruptions . | . . Robots Melted . | . . Combat Hostiles . | . . Parts Melted . | . . Heat Transferred . | . . Parts Sabotaged . | . . Parts Stolen . | . . Parts Stripped . | . . Power Chain Reactions . | . . Alert | -11 -10 ------- Run | Yrd Mat Maximum Alert Level . | . . Low Security (%) 100 | 100 100 Level 1 . | . . Level 2 . | . . Level 3 . | . . Level 4 . | . . Level 5 . | . . High Security . | . . Max Security . | . . Peak Influence 80 | . 80 Initial . | . . Average 1 | . 6 Influence Increases 145 | . 145 Destroy 0b10 Robot/C 100 | . 100 Destroy Leader 40 | . 40 Successful Hack 5 | . 5 Influence Decreases 83 | . 83 Time Decay 53 | . 53 Lost Part 30 | . 30 Squads Dispatched 3 | . 3 Investigation . | . . Extermination . | . . Reinforcement 3 | . 3 Assault . | . . Garrison . | . . Intercept . | . . Searches Triggered . | . . Construction Impeded . | . . Haulers Reinforced . | . . Active Scanning Responses . | . . Cargo Convoy Interrupts . | . . Stealth | -11 -10 --------- Run | Yrd Mat Distress Signals . | . . Communications Jammed . | . . Distress Signals . | . . Times Spotted 21 | 6 15 Peak Tracking Total 6 | 2 6 Tactical Retreats 2 | 2 . Traps | -11 -10 ------- Run | Yrd Mat Traps Triggered . | . . Indirectly . | . . Trap Hack Attempts . | . . Triggered . | . . Disarmed . | . . Reprogrammed . | . . Reused . | . . Traps Extracted . | . . Installed . | . . Triggered . | . . Machines | -11 -10 ---------- Run | Yrd Mat Machines Disabled . | . . Max in Single Turn . | . . Machines Repaired . | . . Machines Dismantled . | . . Machines Sabotaged . | . . Overloaded Fab Kills . | . . Hacking | -11 -10 --------- Run | Yrd Mat Machines Accessed 2 | . 2 Terminals 2 | . 2 Fabricators . | . . Repair Stations . | . . Recycling Units . | . . Scanalyzers . | . . Garrison Access . | . . Total Hacks 7 | . 7 Successful 3 | . 3 Failed 4 | . 4 Catastrophic 1 | . 1 Database Lockouts . | . . Manual 5 | . 5 Terminals 7 | . 7 Fabricators . | . . Repair Stations . | . . Recycling Units . | . . Scanalyzers . | . . Garrison Access . | . . Terminal Hacks 1 | . 1 Prototype ID Bank 1 | . 1 Fabricator Hacks . | . . Repair Station Hacks . | . . Recycling Unit Hacks . | . . Scanalyzer . | . . Garrison Access Hacks . | . . Unauthorized Hacks 2 | . 2 Terminals 2 | . 2 Botnet 2 | . 2 Fabricators . | . . Repair Stations . | . . Recycling Units . | . . Scanalyzers . | . . Garrison Access . | . . Data Cores Recovered . | . . Used . | . . Hacking Detections 2 | . 2 Full Trace Events . | . . Feedback Events . | . . Feedback Blocked . | . . Robot Schematics Acquired . | . . Robots Built . | . . Authchips . | . . Time . | . . Total Robot Build Rating . | . . Part Schematics Acquired . | . . Parts Built . | . . Authchips . | . . Time . | . . Total Part Build Rating . | . . Part Studies Acquired . | . . Parts Repaired . | . . Time . | . . Parts Recycled . | . . Recycled Matter . | . . Retrieved Matter . | . . Retrieved Components . | . . Parts Scanalyzed . | . . Part Schematics Acquired . | . . Parts Damaged . | . . Bothacking | -11 -10 ------------ Run | Yrd Mat Used RIF Installer . | . . Robots Hacked . | . . Non-combat . | . . Combat . | . . Robot Hacks Applied . | . . Relay Couplers Released . | . . Fabnet Peak Effective % . | . . Robots Rewired . | . . Allies Hacked . | . . Hacks Repelled . | . . Allies | -11 -10 -------- Run | Yrd Mat Total Allies . | . . Largest Group . | . . Highest-Rated Group . | . . Highest-Rated Ally . | . . Total Orders . | . . Ally Attacks . | . . Total Damage . | . . Kills . | . . Allies Corrupted . | . . Allies Melted . | . . Intel | -11 -10 ------- Run | Yrd Mat Active Infowar (turns) 249 | 19 230 Terrain 249 | 19 230 Robot Analysis Total . | . . Derelict Logs Recovered . | . . Drone Launches . | . . Drone Recoveries . | . . Exploration | -11 -10 ------------- Run | Yrd Mat Turns Passed 2574 | 2168 406 Spaces Moved 753 | 456 297 Core 10 | 10 . Treads . | . . Legs 620 | 446 174 Wheels . | . . Hover 123 | . 123 Flight . | . . Fastest Speed 50 | 50 56 Average Speed 112 | 118 104 Slowest Speed 120 | 120 120 Overloaded Moves . | . . Propulsion Burnouts . | . . Robots Hopped . | . . Potential Cave-ins . | . . Cave-ins Triggered . | . . Exploration Rate (%) 33 | 24 43 Regions Visited 1 Branch Regions . Pre-discovered Areas . | . . Known Exits Taken . | . . Unknown Exits Taken 1 | 1 . Scrap Searched . | . . Spaces Dug . | . . Terrain Destroyed . | . . Melee . | . . Projectile . | . . AOE . | . . Terrain Rammed . | . . Walls Destroyed . | . . Machines Disabled . | . . Actions | -11 -10 --------- Run | Yrd Mat Total 2419 | 2053 366 Wait 1594 | 1565 29 Move 752 | 455 297 Hop . | . . Pick Up 18 | 7 11 Fast Attach . | . . Attach 12 | 7 5 Detach . | . . Swap 3 | . 3 Drop . | . . Fire 39 | 19 20 Melee . | . . Ram 1 | . 1 Kick . | . . Crush . | . . Escape Stasis . | . . Rewire . | . . Trap . | . . Miscellaneous . | . . Route ------- -11/Scrapyard -10/Materials History --------- Turn | Location | Event 22 | -11/Scrapyard | Discovered new exit (range 16) 1868 | -11/Scrapyard | Assembled infested the area 2169 | -11/Scrapyard | Entered Materials 2171 | -10/Materials | Build established: Mutant 2257 | -10/Materials | Core integrity fell below 50% 2436 | -10/Materials | Core integrity fell below 20% 2575 | -10/Materials | Destroyed by G-34 Mercenary with Small Laser Last Messages --------------- 02435_ G-34 Mercenary destroyed. 02436_ Acquired 15 matter. 02436_ G-34 Mercenary destroyed. 02455_ Acquired Ion Engine. 02473_ K-01 Serf collects debris. 02487_ Imp. Terrain Scanner destroyed. 02505_ Slammed into R-06 Scavenger. 02533_ Acquired Lgt. Cannon. 02540_ G-34 Mercenary destroyed. 02551_ G-47 Trooper knocked back. 02553_ G-34 Mercenary knocked back. 02555_ G-34 Mercenary destroyed. 02563_ G-47 Trooper destroyed. 02565_ Acquired 2 matter. 02567_ Acquired 25 matter. 02569_ Acquired Heat Sink. 02570_ Acquired 22 matter. 02571_ Acquired 4 matter. 02573_ Hover Unit destroyed. 02574_ Acquired Sml. Laser. Map ----- +----------------------------------------------------+ | ?????#???????????????????????????????????????????? | | ?########????????????????????????????????????????? | | ?# #?????????????????#??????????????????????? | | ?# #?????????##?????????????????????????????? | | ?# #????????????????????????????????????????? | | ?# #??????#?????????????????????????????????? | | ?# == ##########???????????????????????????????? | | ?# !%%*# #??????????? ???????????????????? | | ?####/### """ #?#?????????????????????????????? | | ??# # """ #???#???????????????????????????? | | ??# # """ #???????????????????????????????? | | ??# T + ##? ????????????????????????????? | | ??# # """ #???????????????????????????????? | | ??# # = "" #? ???????????????#?????????????? | | ??### ### """ #???????????????? ??????????????? | | ????# #?# #??????????????? ???????????????? | | ????# #?##########?????????????? ????????????????? | | ????# #??#????????????????????? #????????????????? | | ????# #??????????????????????? #????????????????? | | ????# #################?????? #????????????????? | | ????# # # ####### #????????????????? | | ##??# # # #????????????????? | | !?# # # g #????????????????? | | ? !?# # # #????????????????? | | # # # ###/#######????????????????? | | # #? ## ## @ %%#?????????????????? | | / #??? ## ## """ =% #?????????????????? | | # #????? ## ## """=[! #?????????????????? | | ##?## ########+### ## """ #?????????????????? | | #??# ## #????????#????????? | | #### ## """ #?????????#???????? | | + ## """ #????#???? ??????? | | #####+###### ###### ### """ #??????#??? "?????? | | #?? ???# #????# #?# #?#????#??? T?????? | | ## ## #????# #?##########?????????? "? ??? | | ## !! ## #?#??# #????????????????#?# ? ?????? | | ## !! ## #????# #?????????##?#???????? ??#??? | | ## !! ## #????# ##################???##+###### | | ## ## #????# | | ?# "Y" ## #????# ####### #########?????# | | ?# """ ## #????# ##????# #???########??# | | ?# ## ##???# # ? # #???# #??# # | | ?########### #????# # # ##### """ #??# # | | ???????????# #????# # + ## """ #### % # | | ???????#???# #????# # # ## """ / *% # | | ???????????#+######+####??# ## #######= # | | ???????????# #?#???# ## """ !#?????## # | | ???????????# #?????#### ## """ #??????# # | | ???????????# #???????## ## """ %#?#??##? | | ???????????# """ #????????# ## #??????? | +----------------------------------------------------+ Best States ------------- Heat Dissipation 25 Energy Generation 10 Energy Capacity 250 Matter Stores 300 Matter Capacity 300 Sight Range 16 Terrain Scan Range 16 Terrain Scan Density 10 Evasion (%) 55 Targeting Accuracy 5 Item Schematics ----------------- None Robot Schematics ------------------ None Fabricated ------------ Nothing Repaired ---------- Nothing Studied --------- None Alien Tech Used ----------------- None Achievements -------------- Curiosity Killed The Cat Challenges ------------ None Game ------ Seed CouplerExoskeletonBuckler Manual? 0 Play Time 00:12:58 Cumulative 35.5 hours Start 2026.02.21 @ 11:10:18 End 2026.02.21 @ 11:19:04 Sessions 1 Manual Loads 0 Difficulty Rogue Special Mode None Game No. 39 Rogue 39 Adventurer 0 Explorer 0 Win Type - Total 0 Types 0/0/0/0/0/0/0/0/0/0 Lore% 40 Gallery% 32 Achievement% 26 Wizard Run 0 Options --------- Layout 1 ASCII 0 Keyboard 0 Movement Mouse Keybinds 0 Fullscreen 1 Font 24/Swanston Map View 50x35 Zoom Use 0% Tactical HUD 1 Map Filters NONE Filters NONE Steam 1 RUN: 2c6b1ea1-70e4-45cc-bbff-c728d28842b8